Cogmind - Beta 13 @@@ ROGUE MODE // 2024.03.28 @ 14:04:45 Player: darki Result: Escaped! Performance ------------- Evolutions (9) 4500 Regions Visited (24) 4800 Robots Destroyed (87) 435 Value Destroyed (1987) 1987 Prototype IDs (89) 1780 Alien Tech Used (0) 0 Bonus (6287) 6287 TOTAL SCORE: 19789 Bonus ------- High Alert Combat Kills 28 Follower Combat Kills 932 Entered DSFs 500 Network Hubs Disabled 800 Aligned with FarCom 300 Met Data Miner 300 Built Enhanced Grunts 300 A7 Reached Mainframe 300 Win 3000 Friendly Fire -173 Cogmind --------- Core Integrity 1493/1600 Matter 123/300 Energy 89/100 System Corruption 1% Temperature Cool (9) Movement Flying (30) Location To Epsilon Eridani Parts ------- > --- POWER (1) -------- (None) > --- PROPULSION (5) --- Field Propulsion Array Field Propulsion Array Improved Diametric Drive > --- UTILITY (17) ----- Machine Analyzer Triangulator Enhanced Optical Array Advanced Sensor Array Advanced Signal Interpreter Advanced ECM Suite Improved Reaction Control System Improved Utility Shielding Hacking Suite Improved Hacking Suite Improved Hacking Suite Advanced Hacking Suite Advanced Hacking Suite Experimental Hacking Suite System Shield System Shield Improved System Shield > --- WEAPON (2) ------- Enhanced Force Lance > --- INVENTORY (5) ---- Mini Grenade Launcher Advanced Datajack Advanced Remote Datajack Peak State ------------ > --- POWER ------------ Light Particle Reactor > --- PROPULSION ------- Field Propulsion Array Field Propulsion Array Improved Diametric Drive > --- UTILITY ---------- Machine Analyzer Enhanced Optical Array Advanced Sensor Array Advanced Signal Interpreter Advanced ECM Suite Improved Propulsion Shielding Improved Utility Shielding Hacking Suite Improved Hacking Suite Improved Hacking Suite Improved Hacking Suite Advanced Hacking Suite Advanced Hacking Suite Experimental Hacking Suite Experimental Hacking Suite System Shield Improved System Shield > --- WEAPON ----------- Enhanced Force Lance > --- INVENTORY -------- Mini Grenade Launcher Advanced Datajack Advanced Remote Datajack [Rating: 136] Favorites ----------- Power Ion Engine Engine Ion Engine Power Core Micro Nuclear Core Reactor Light Particle Reactor Propulsion Improved Flight Unit Leg Aluminum Leg Flight Unit Improved Flight Unit Utility Hacking Suite Device Advanced Sensor Array Storage Medium Storage Unit Processor Machine Analyzer Hackware Hacking Suite Protection Improved Propulsion Shielding Weapon Makeshift Hammer Energy Gun Heavy EM Pulse Gun Energy Cannon Light EM Pulse Cannon Ballistic Gun Assault Rifle Launcher Mini Grenade Launcher Impact Weapon Makeshift Hammer Piercing Weapon Enhanced Force Lance Special Melee Weapon Improved Datajack Build | -11 -10 -10 -9 -9 -9 -8 -8 -7 -7 -7 -7 -6 -6 -6 -5 -5 -5 -5 -5 -4 -3 -2 -1 -1 ------- Run | Yrd Mat Min Mat Min Exi Min Mat Fac Low Low Dat Pro Fac DSF Fac Ext Cet Arc Hub Fac Res Res Acc Com Slots Evolved 18 | . . . 2 . . . 2 2 . . . . 2 . 2 . . . . 2 2 2 2 . Power . | . . . . . . . . . . . . . . . . . . . . . . . . . Propulsion 3 | . . . . . . . 1 . . . . . 1 . . . . . . . . . 1 . Utility 15 | . . . 2 . . . 1 2 . . . . 1 . 2 . . . . 2 2 2 1 . Weapon . | . . . . . . . . . . . . . . . . . . . . . . . . . Parts Attached 102 | . 4 . 9 . 1 8 7 3 . 1 . 2 . 1 16 8 5 7 3 7 7 4 4 5 Power 8 | . . . . . 1 . . 1 . . . . . . 1 1 2 . 1 . 1 . . . Engine 3 | . . . . . 1 . . . . . . . . . 1 . 1 . . . . . . . Core 4 | . . . . . . . . 1 . . . . . . . 1 1 . 1 . . . . . Reactor 1 | . . . . . . . . . . . . . . . . . . . . . 1 . . . Propulsion 15 | . . . 2 . . 2 1 . . . . 1 . . 2 1 . . 1 1 1 . 3 . Treads . | . . . . . . . . . . . . . . . . . . . . . . . . . Leg 1 | . . . 1 . . . . . . . . . . . . . . . . . . . . . Wheel . | . . . . . . . . . . . . . . . . . . . . . . . . . Hover . | . . . . . . . . . . . . . . . . . . . . . . . . . Flight 14 | . . . 1 . . 2 1 . . . . 1 . . 2 1 . . 1 1 1 . 3 . Utility 55 | . 2 . 2 . . 2 5 2 . . . 1 . 1 13 3 1 4 . 5 4 4 1 5 Device 15 | . 1 . 1 . . 1 1 . . . . . . . 3 1 . 2 . . 1 1 1 2 Storage 1 | . 1 . . . . . . . . . . . . . . . . . . . . . . . Processor 11 | . . . . . . . 2 . . . . . . 1 5 . 1 . . 1 1 . . . Hackware 20 | . . . . . . 1 1 2 . . . . . . 5 . . 2 . 3 2 2 . 2 Protection 8 | . . . 1 . . . 1 . . . . 1 . . . 2 . . . 1 . 1 . 1 Artifact . | . . . . . . . . . . . . . . . . . . . . . . . . . Weapon 24 | . 2 . 5 . . 4 1 . . 1 . . . . . 3 2 3 1 1 1 . . . Energy Gun 5 | . 2 . 1 . . 1 . . . . . . . . . . . 1 . . . . . . Energy Cannon 5 | . . . 4 . . 1 . . . . . . . . . . . . . . . . . . Ballistic Gun . | . . . . . . . . . . . . . . . . . . . . . . . . . Ballistic Cannon . | . . . . . . . . . . . . . . . . . . . . . . . . . Launcher 7 | . . . . . . 2 . . . 1 . . . . . 2 1 . 1 . . . . . Special Weapon . | . . . . . . . . . . . . . . . . . . . . . . . . . Impact Weapon 3 | . . . . . . . 1 . . . . . . . . . . 1 . 1 . . . . Slashing Weapon . | . . . . . . . . . . . . . . . . . . . . . . . . . Piercing Weapon 1 | . . . . . . . . . . . . . . . . . . . . . 1 . . . Special Melee Weapon 3 | . . . . . . . . . . . . . . . . 1 1 1 . . . . . . Unidentified Prototypes 5 | . . . 3 . . . . . . . . . . . 1 . . . . . . 1 . . Corrupted Parts 1 | . . . . . . 1 . . . . . . . . . . . . . . . . . . System Corruption 1 | . . . . . . 1 . . . . . . . . . . . . . . . . . . Parts Lost 26 | . . . . . . 5 . . . . . 1 . 4 . 1 2 . 2 3 3 . 1 4 Power 5 | . . . . . . 1 . . . . . . . 1 . . 1 . . . 1 . . 1 Propulsion 6 | . . . . . . 1 . . . . . 1 . 1 . . . . 2 1 . . . . Utility 13 | . . . . . . 2 . . . . . . . 2 . 1 1 . . 2 1 . 1 3 Weapon 2 | . . . . . . 1 . . . . . . . . . . . . . . 1 . . . Highest Loss Streak 4 | . . . . . . 3 . . . . . 1 . 4 . 1 2 . 2 2 2 . 1 2 To Critical Strikes . | . . . . . . . . . . . . . . . . . . . . . . . . . Average Slot Usage (%) 86 | . 98 100 89 100 100 61 80 86 92 92 86 85 80 80 76 86 93 94 93 83 81 82 84 85 Engine 4 | . 14 14 11 11 11 5 . . . . . . . . 2 3 2 . . 4 3 . . . Core 1 | . . . . . . . . 6 7 7 7 7 6 6 . 1 2 5 4 . . . . . Leg 7 | . 28 28 22 22 22 9 . . . . . . . . . . . . . . . . . . Flight 10 | . . . . . . 2 27 23 23 23 23 23 20 20 16 17 17 17 16 7 11 13 12 12 Device 10 | . 12 14 17 22 22 11 9 7 7 7 7 7 6 6 6 5 5 5 5 5 5 6 5 11 Storage 4 | . 14 14 11 11 11 11 . . . . . . . . . . . . . . . . . . Processor 6 | . . . . . . . 9 7 7 7 7 7 6 8 15 6 10 11 11 10 14 13 12 12 Hackware 20 | . . . . . . . 17 25 30 30 30 30 26 24 24 35 29 38 41 46 37 35 39 37 Protection 5 | . . . 6 11 11 . 7 7 7 7 2 1 6 6 2 6 11 2 . . 4 5 8 4 Energy Gun 3 | . 26 28 14 . . 2 . . . . . . . . . . . 2 . . . . . . Energy Cannon 4 | . . . 7 22 22 16 . . . . . . . . . . . . . . . . . . Impact Weapon 2 | . . . . . . . 8 7 7 7 7 7 6 6 5 5 5 2 4 4 2 . . . Naked Turns . | . . . . . . . . . . . . . . . . . . . . . . . . . Heaviest Build 31 | 14 23 23 29 29 29 24 7 13 13 13 13 13 13 13 12 22 22 17 10 7 25 27 30 31 Greatest Support 37 | 20 20 20 20 20 20 10 9 13 13 13 13 14 14 14 23 23 23 23 23 20 27 27 37 37 Greatest Overweight (x) 6 | . 1 1 1 1 1 2 . . . . . . . . . 6 . . . . 2 . . . Average Overweight (x) . | . . 1 1 1 1 1 . . . . . . . . . . . . . . . . . . Largest Inventory Capacity 10 | . 10 10 10 10 10 10 10 5 5 5 5 5 5 5 5 5 5 5 5 5 5 5 5 5 Average Capacity 6 | . 8 10 10 10 10 10 5 5 5 5 5 5 5 5 5 5 5 5 5 5 5 5 5 5 Most Carried 10 | . 10 10 10 10 10 10 8 4 4 4 5 4 2 5 5 5 5 5 5 5 3 3 3 3 Average Carried 6 | . 7 10 9 10 10 9 4 4 4 3 4 3 2 2 4 4 4 4 4 3 2 2 3 3 Final Capacity 10 | 8 10 10 10 10 10 10 5 5 5 5 5 5 5 5 5 5 5 5 5 5 5 5 5 5 Final Carried 10 | 6 10 10 10 10 10 9 5 4 4 4 4 2 2 5 5 5 5 5 5 4 2 3 3 3 Class Distribution -------------------- 36% | Mutant 31% | Wizard-Scout 11% | Hacker-Scout 6% | Hacker-Mutant 4% | Wizard-Ninja 3% | Wizard-Assassin Dominant Class ---------------- Mutant | -10/Materials Mutant | -10/Mines Mutant | -9/Materials Mutant | -9/Mines Mutant | -9/Exiles Mutant | -8/Mines Scavenger-Scout | -8/Materials Hacker-Scout | -7/Factory Hacker-Mutant | -7/Lower Caves Hacker-Mutant | -7/Lower Caves Hacker-Mutant | -7/Data Miner Hacker-Mutant | -6/Proximity Caves Hacker-Mutant | -6/Factory Hacker-Scout | -6/DSF Wizard-Scout | -5/Factory Wizard-Scout | -5/Extension Hacker-Scout | -5/Cetus Wizard-Scout | -5/Archives Wizard-Scout | -5/Hub_04(d) Wizard-Scout | -4/Factory Wizard-Assassin | -3/Research Wizard-Scout | -2/Research Wizard-Scout | -1/Access Wizard-Ninja | -1/Command Resources | -11 -10 -10 -9 -9 -9 -8 -8 -7 -7 -7 -7 -6 -6 -6 -5 -5 -5 -5 -5 -4 -3 -2 -1 -1 ----------- Run | Yrd Mat Min Mat Min Exi Min Mat Fac Low Low Dat Pro Fac DSF Fac Ext Cet Arc Hub Fac Res Res Acc Com Matter Collected 1249 | 200 40 . 52 38 . 105 18 . . 23 . 3 . 101 185 195 100 80 . 75 15 . . 19 Remotely . | . . . . . . . . . . . . . . . . . . . . . . . . . Salvage Created 2892 | . 624 . 564 52 . 331 142 . . 42 . 14 . . 446 49 111 308 152 34 23 . . . Parts 141 | . 30 . 39 4 . 11 4 . . 4 . . . . 17 4 2 15 11 . . . . . Haulers Intercepted 7 | . 2 . 3 . . . 2 . . . . . . . . . . . . . . . . . Recyclers Shooed . | . . . . . . . . . . . . . . . . . . . . . . . . . Parts Field Recycled . | . . . . . . . . . . . . . . . . . . . . . . . . . Retrieved Matter . | . . . . . . . . . . . . . . . . . . . . . . . . . Parts Self-Destructed 9 | . . . . . . . . . 6 3 . . . . . . . . . . . . . . Prevented 1 | . . . . . . . . . . 1 . . . . . . . . . . . . . . Kills | -11 -10 -10 -9 -9 -9 -8 -8 -7 -7 -7 -7 -6 -6 -6 -5 -5 -5 -5 -5 -4 -3 -2 -1 -1 ------- Run | Yrd Mat Min Mat Min Exi Min Mat Fac Low Low Dat Pro Fac DSF Fac Ext Cet Arc Hub Fac Res Res Acc Com Combat Hostiles Destroyed 34 | . 7 . 5 3 . 10 . . . 3 . 2 . . . . 1 . 3 . . . . . Melee 2 | . . . . . . . . . . . . 2 . . . . . . . . . . . . Guns 10 | . 7 . 3 . . . . . . . . . . . . . . . . . . . . . Cannons 6 | . . . . 1 . 5 . . . . . . . . . . . . . . . . . . AOE 15 | . . . 2 2 . 4 . . . 3 . . . . . . 1 . 3 . . . . . Classes Destroyed 16 | . 6 . 1 1 . 2 1 . . . . 1 . . 2 . 1 . 1 . . . . . Worker 7 | . 2 . 2 . . . 1 . . . . . . . 1 . . . 1 . . . . . Builder 10 | . . . . . . . . . . . . . . . 3 3 . . . 2 2 . . . Tunneler 2 | . . . . . . . 1 . . . . . . . 1 . . . . . . . . . Hauler 7 | . 2 . 3 . . . 2 . . . . . . . . . . . . . . . . . Recycler 5 | . 1 . 1 . . 1 . . . . . . . . 2 . . . . . . . . . Mechanic 1 | . . . . . . . . . . . . . . . 1 . . . . . . . . . Operator 13 | . 1 . 1 . . . 1 . . . . . . . 1 . . 9 . . . . . . Drone 2 | . . . . . . . . . . . . 2 . . . . . . . . . . . . Watcher 7 | . 1 . 4 . . . . . . . . . . . 1 1 . . . . . . . . Swarmer 12 | . . . . 3 . 6 . . . 3 . . . . . . . . . . . . . . Cutter 2 | . . . . . . . . . . . . . . . . . . . 2 . . . . . Grunt 14 | . 7 . 4 . . 2 . . . . . . . . . . . . 1 . . . . . Brawler 1 | . . . . . . 1 . . . . . . . . . . . . . . . . . . Sentry 1 | . . . 1 . . . . . . . . . . . . . . . . . . . . . Hunter 1 | . . . . . . 1 . . . . . . . . . . . . . . . . . . Cetus Guard 1 | . . . . . . . . . . . . . . . . . 1 . . . . . . . Butcher 1 | . . . . . . . . . . . . . . . . . 1 . . . . . . . Best Kill Streak 8 | . 8 . 2 3 . 5 3 . . 3 . 2 . . 4 2 1 3 4 1 2 . . . Combat Bots Only 4 | . 3 . 2 3 . 4 . . . 3 . 2 . . . . 1 . 3 . . . . . Max Kills in Single Turn 4 | . 2 . 1 2 . 3 1 . . 2 . 1 . . 1 1 1 1 4 1 1 . . . Gunslinging . | . . . . . . . . . . . . . . . . . . . . . . . . . Exploded 3 | . . . 1 2 . 2 . . . 2 . . . . . . 1 . 3 . . . . . Melee 1 | . . . . . . . . . . . . 1 . . . . . . . . . . . . Uniques/NPCs Destroyed . | . . . . . . . . . . . . . . . . . . . . . . . . . Combat | -11 -10 -10 -9 -9 -9 -8 -8 -7 -7 -7 -7 -6 -6 -6 -5 -5 -5 -5 -5 -4 -3 -2 -1 -1 -------- Run | Yrd Mat Min Mat Min Exi Min Mat Fac Low Low Dat Pro Fac DSF Fac Ext Cet Arc Hub Fac Res Res Acc Com Hostile Shots Fired 271 | . 18 . 26 28 . 28 4 . . 4 . 8 . 9 . 8 24 5 11 7 43 . . 48 Missed 116 | . 7 . 14 6 . 10 2 . . 1 . 3 . 4 . 2 9 2 3 3 27 . . 23 Damage Taken 3383 | . 137 . 161 181 . 299 33 . . 115 . 94 . 169 . 152 460 74 398 197 285 109 89 430 Core 963 | . 23 . 22 44 . 61 . . . 74 . . . . . 24 179 26 211 51 102 39 . 107 Absorbed by Shields 67 | . . . . . . . . . . . . . . . . 11 . . . . . . . 56 Redirected to Shielding 229 | . . . . . . . . . . . . . . . . . . 13 . . 48 25 44 99 Core Remaining (%) 89 | 100 . 90 . . . 68 100 . . . . 89 . 100 . . . . 56 95 92 97 . 93 Volleys Fired 111 | . 22 . 27 5 . 12 . . . 2 . . . . . 11 7 24 1 . . . . . Largest 2 | . 2 . 2 2 . 2 . . . 1 . . . . . 1 1 1 1 . . . . . Hottest 112 | . 90 . 112 112 . 112 . . . 30 . . . . . 30 30 94 30 . . . . . Shots Fired 172 | . 44 . 54 10 . 19 . . . 2 . . . . . 11 7 24 1 . . . . . Gun 94 | . 44 . 26 . . . . . . . . . . . . . . 24 . . . . . . Cannon 53 | . . . 28 10 . 15 . . . . . . . . . . . . . . . . . . Launcher 25 | . . . . . . 4 . . . 2 . . . . . 11 7 . 1 . . . . . Special . | . . . . . . . . . . . . . . . . . . . . . . . . . Kinetic . | . . . . . . . . . . . . . . . . . . . . . . . . . Thermal 24 | . . . . . . . . . . . . . . . . . . 24 . . . . . . Explosive 25 | . . . . . . 4 . . . 2 . . . . . 11 7 . 1 . . . . . Electromagnetic 123 | . 44 . 54 10 . 15 . . . . . . . . . . . . . . . . . . Robot Hit Streak 14 | . 11 . 4 2 . 10 . . . 2 . . . . . 4 11 14 . . . . . . Robot Miss Streak 4 | . 4 . 3 4 . 1 . . . . . . . . . . . 2 . . . . . . Penetration Max . | . . . . . . . . . . . . . . . . . . . . . . . . . Secondary Targets 1 | . 1 . . . . . . . . . . . . . . . . . . . . . . . Max Gunslinging Chain 1 | . 1 . . . . . . . . . . . . . . . . . . . . . . . Shots Hit Robots 130 | . 25 . 26 4 . 14 8 . . 2 . 2 . . 10 4 7 24 . 2 2 . . . Core Hits 104 | . 16 . 15 3 . 13 1 . . 4 . . . . 3 9 14 11 15 . . . . . Critical Kills 1 | . . . . . . . . . . . . . . . . . . 1 . . . . . . Critical Parts Destroyed 3 | . . . . . . . 1 . . . . . . . 1 . . 1 . . . . . . Critical Strikes 7 | . 1 . . 1 . 1 1 . . . . . . . 1 . . 2 . . . . . . Corrupt 3 | . 1 . . 1 . 1 . . . . . . . . . . . . . . . . . . Smash 4 | . . . . . . . 1 . . . . . . . 1 . . 2 . . . . . . Melee Attacks 232 | . . . . . . . 21 26 6 . . 6 . 7 42 15 4 8 5 35 7 15 14 21 Impact 175 | . . . . . . . 21 26 6 . . 6 . 7 42 15 1 6 4 35 6 . . . Slashing . | . . . . . . . . . . . . . . . . . . . . . . . . . Piercing 51 | . . . . . . . . . . . . . . . . . . . . . 1 15 14 21 Sneak Attacks 25 | . . . . . . . 5 . . . . 1 . . 8 2 . 5 . 2 2 . . . Combat Hostiles 1 | . . . . . . . . . . . . 1 . . . . . . . . . . . . Follow-up Attacks . | . . . . . . . . . . . . . . . . . . . . . . . . . Damage Inflicted 7285 | . 458 3 767 192 . 696 583 . . 215 . 163 . . 1025 757 541 899 656 166 164 . . . Guns 1187 | . 458 . 194 . . . . . . . . . . . . . . 535 . . . . . . Cannons 880 | . . . 473 113 . 294 . . . . . . . . . . . . . . . . . . Explosions 2518 | . . . 100 79 . 402 . . . 215 . . . . . 525 541 . 656 . . . . . Melee 2692 | . . . . . . . 583 . . . . 163 . . 1025 232 . 364 . 161 164 . . . Ramming 8 | . . 3 . . . . . . . . . . . . . . . . . 5 . . . . Kinetic . | . . . . . . . . . . . . . . . . . . . . . . . . . Thermal 769 | . . . 100 79 . 55 . . . . . . . . . . . 535 . . . . . . Explosive 1628 | . . . . . . 347 . . . 215 . . . . . 525 541 . . . . . . . Electromagnetic 2188 | . 458 . 667 113 . 294 . . . . . . . . . . . . 656 . . . . . Impact 2692 | . . . . . . . 583 . . . . 163 . . 1025 232 . 364 . 161 164 . . . Slashing . | . . . . . . . . . . . . . . . . . . . . . . . . . Piercing . | . . . . . . . . . . . . . . . . . . . . . . . . . Highest Corruption 8 | . . . . . . 8 . . . . . . . . . 1 1 1 1 2 7 . 1 1 Average Corruption 3 | . . . . . . 7 . . . . . . . . . 1 1 1 1 2 5 . 1 1 Corruption Purged 1 | . . . . . . . . . . . . . . . . . . 1 . . . . . . Corruption Blocked . | . . . . . . . . . . . . . . . . . . . . . . . . . Effects 32 | . . . . . . 12 . . . . . . . . . 3 2 3 . . 8 . . 4 Message Errors 7 | . . . . . . 3 . . . . . . . . . . . 1 . . 2 . . 1 Matter Fused 9 | . . . . . . 4 . . . . . . . . . . . . . . 3 . . 2 Heat Flow Errors 3 | . . . . . . 1 . . . . . . . . . 2 . . . . . . . . Energy Discharges 4 | . . . . . . . . . . . . . . . . . 1 2 . . 1 . . . Parts Rejected 2 | . . . . . . 1 . . . . . . . . . 1 . . . . . . . . Parts Fused 1 | . . . . . . 1 . . . . . . . . . . . . . . . . . . Data Loss (minor) 4 | . . . . . . 1 . . . . . . . . . . 1 . . . 1 . . 1 Data Loss (major) 1 | . . . . . . 1 . . . . . . . . . . . . . . . . . . Alerts 1 | . . . . . . . . . . . . . . . . . . . . . 1 . . . Overload Shots . | . . . . . . . . . . . . . . . . . . . . . . . . . Overflow Damage 1629 | . . . 40 17 . 8 329 . . . . 115 . . 558 188 . 160 29 101 84 . . . Projectiles 57 | . . . 40 17 . . . . . . . . . . . . . . . . . . . . Explosions 63 | . . . . . . 8 . . . . . . . . . 26 . . 29 . . . . . Melee 1509 | . . . . . . . 329 . . . . 115 . . 558 162 . 160 . 101 84 . . . Knockbacks 9 | . . . . . . . 1 . . . . . . . 4 . . 3 . . 1 . . . Impact 9 | . . . . . . . 1 . . . . . . . 4 . . 3 . . 1 . . . Kinetic . | . . . . . . . . . . . . . . . . . . . . . . . . . Secondary . | . . . . . . . . . . . . . . . . . . . . . . . . . Self-Inflicted Damage 242 | . . . . . . 61 . . . 72 . . . . . . . . 107 2 . . . . Shots 5 | . . . . . . 2 . . . 2 . . . . . . . . 1 . . . . . Rammed 1 | . . . . . . . . . . . . . . . . . . . . 1 . . . . Targets Rammed 2 | . . 1 . . . . . . . . . . . . . . . . . 1 . . . . Kicked 1 | . . 1 . . . . . . . . . . . . . . . . . . . . . . Crushed . | . . . . . . . . . . . . . . . . . . . . . . . . . Highest Temperature 256 | . . . . . . 246 . . . . . 4 . . 256 256 2 252 . . . . . . Average Temperature 86 | . . . . . . 48 . . . . . 4 . . 137 127 1 86 . . . . . . Received Heat Transfer 396 | . 78 . 90 . . 27 9 . . . . 45 . 9 . 33 54 . 18 9 . . . 24 Effects 3 | . . . . . . . . . . . . . . . . . . 3 . . . . . . Interference 3 | . . . . . . . . . . . . . . . . . . 3 . . . . . . Siege Activations . | . . . . . . . . . . . . . . . . . . . . . . . . . Robots Corrupted 2 | . . . 1 . . 1 . . . . . . . . . . . . . . . . . . Combat Hostiles 1 | . . . . . . 1 . . . . . . . . . . . . . . . . . . Parts Fried 40 | . . . 3 2 . 1 1 . . . . 3 . . 10 4 1 8 1 2 4 . . . Impact Corruptions 48 | . . . . . . . 9 . . . . 3 . . 18 5 . 6 . 3 4 . . . Robots Melted . | . . . . . . . . . . . . . . . . . . . . . . . . . Combat Hostiles . | . . . . . . . . . . . . . . . . . . . . . . . . . Parts Melted 4 | . . . . . . . . . . . . . . . . . 1 3 . . . . . . Heat Transferred 853 | . . . 50 50 . 50 . . . . . . . . . . . 703 . . . . . . Parts Sabotaged . | . . . . . . . . . . . . . . . . . . . . . . . . . Parts Stolen . | . . . . . . . . . . . . . . . . . . . . . . . . . Parts Stripped . | . . . . . . . . . . . . . . . . . . . . . . . . . Power Chain Reactions 4 | . . . 2 1 . 1 . . . . . . . . . . . . . . . . . . Alert | -11 -10 -10 -9 -9 -9 -8 -8 -7 -7 -7 -7 -6 -6 -6 -5 -5 -5 -5 -5 -4 -3 -2 -1 -1 ------- Run | Yrd Mat Min Mat Min Exi Min Mat Fac Low Low Dat Pro Fac DSF Fac Ext Cet Arc Hub Fac Res Res Acc Com Peak Influence 747 | . 251 97 198 107 . 114 230 118 . . . . 28 66 198 225 403 470 747 360 147 121 152 123 Initial 360 | . . 97 37 17 . . 44 51 . . . . 28 19 23 38 20 161 164 360 7 82 52 96 Average 103 | . 115 97 47 71 . 88 114 70 . . . . 28 34 79 59 244 420 323 75 40 49 84 67 Maximum Alert Level 3 | . 1 . . . . . 1 . . . . . . . 1 1 2 2 3 1 . . . . Low Security (%) 87 | . 72 100 100 100 . 100 86 100 . . . . 100 100 99 87 59 1 18 95 100 100 100 100 Level 1 6 | . 27 . . . . . 13 . . . . . . . . 12 2 15 72 4 . . . . Level 2 6 | . . . . . . . . . . . . . . . . . 37 83 5 . . . . . Level 3 . | . . . . . . . . . . . . . . . . . . . 3 . . . . . Level 4 . | . . . . . . . . . . . . . . . . . . . . . . . . . Level 5 . | . . . . . . . . . . . . . . . . . . . . . . . . . High Security . | . . . . . . . . . . . . . . . . . . . . . . . . . Max Security . | . . . . . . . . . . . . . . . . . . . . . . . . . Squads Dispatched 24 | . 2 . 2 . . . 1 2 . . . . . 1 2 . . . 7 4 2 . . 1 Investigation 9 | . . . . . . . . 2 . . . . . . 1 . . . 4 1 1 . . . Extermination 4 | . . . . . . . . . . . . . . . 1 . . . . 1 1 . . 1 Reinforcement 11 | . 2 . 2 . . . 1 . . . . . . 1 . . . . 3 2 . . . . Assault . | . . . . . . . . . . . . . . . . . . . . . . . . . Garrison . | . . . . . . . . . . . . . . . . . . . . . . . . . Intercept . | . . . . . . . . . . . . . . . . . . . . . . . . . Searches Triggered . | . . . . . . . . . . . . . . . . . . . . . . . . . Construction Impeded 1 | . . . . . . . . . . . . . . . . . . . . 1 . . . . Haulers Reinforced . | . . . . . . . . . . . . . . . . . . . . . . . . . Active Scanning Responses . | . . . . . . . . . . . . . . . . . . . . . . . . . Cargo Convoy Interrupts . | . . . . . . . . . . . . . . . . . . . . . . . . . Stealth | -11 -10 -10 -9 -9 -9 -8 -8 -7 -7 -7 -7 -6 -6 -6 -5 -5 -5 -5 -5 -4 -3 -2 -1 -1 --------- Run | Yrd Mat Min Mat Min Exi Min Mat Fac Low Low Dat Pro Fac DSF Fac Ext Cet Arc Hub Fac Res Res Acc Com Distress Signals 7 | . . . . . . . 2 . . . . . . . . 1 1 . . . 2 . . 1 Communications Jammed . | . . . . . . . . . . . . . . . . . . . . . . . . . Distress Signals . | . . . . . . . . . . . . . . . . . . . . . . . . . Times Spotted 166 | . 10 . 17 3 . 11 6 2 . 3 . 6 . 8 7 11 9 14 5 8 20 2 3 21 Peak Tracking Total 13 | . 2 . 6 3 . 4 5 2 . 3 . 3 . 5 1 4 5 1 13 4 9 2 2 8 Tactical Retreats 25 | . 1 . 1 . . . 3 1 . . . 2 . 3 . 1 . . 1 2 6 1 . 3 Traps | -11 -10 -10 -9 -9 -9 -8 -8 -7 -7 -7 -7 -6 -6 -6 -5 -5 -5 -5 -5 -4 -3 -2 -1 -1 ------- Run | Yrd Mat Min Mat Min Exi Min Mat Fac Low Low Dat Pro Fac DSF Fac Ext Cet Arc Hub Fac Res Res Acc Com Traps Triggered 4 | . . . . . . . . 1 . . . . . . . . . . . . 1 . . 2 Indirectly . | . . . . . . . . . . . . . . . . . . . . . . . . . Trap Hack Attempts . | . . . . . . . . . . . . . . . . . . . . . . . . . Triggered . | . . . . . . . . . . . . . . . . . . . . . . . . . Disarmed 4 | . . . . . . . . . . . . . . . . . . . . . . . 4 . Reprogrammed . | . . . . . . . . . . . . . . . . . . . . . . . . . Reused . | . . . . . . . . . . . . . . . . . . . . . . . . . Traps Extracted . | . . . . . . . . . . . . . . . . . . . . . . . . . Installed 1 | . . . . . . . . . . . . . . . . 1 . . . . . . . . Triggered 4 | . . . . . . . . . 2 2 . . . . . . . . . . . . . . Most Traps Carried 2 | . . . . . . . . . . . . . . . 2 2 . . . . . . . . Machines | -11 -10 -10 -9 -9 -9 -8 -8 -7 -7 -7 -7 -6 -6 -6 -5 -5 -5 -5 -5 -4 -3 -2 -1 -1 ---------- Run | Yrd Mat Min Mat Min Exi Min Mat Fac Low Low Dat Pro Fac DSF Fac Ext Cet Arc Hub Fac Res Res Acc Com Machines Disabled 13 | . 2 . . 1 . . . . . . . . . . 1 . 1 1 6 . . . . 1 Max in Single Turn 6 | . 1 . . 1 . . . . . . . . . . 1 . 1 . 6 . . . . 1 Garrison Access 5 | . . . . . . . 1 . . . . . . . 1 . . . 1 1 . . 1 . Network Hub 4 | . . . . . . . . . . . . . . . . . . . 4 . . . . . Machines Repaired . | . . . . . . . . . . . . . . . . . . . . . . . . . Machines Dismantled . | . . . . . . . . . . . . . . . . . . . . . . . . . Machines Sabotaged 3 | . . . . . . . . . . . . . . . . . . . 3 . . . . . Overloaded Fab Kills . | . . . . . . . . . . . . . . . . . . . . . . . . . Hacking | -11 -10 -10 -9 -9 -9 -8 -8 -7 -7 -7 -7 -6 -6 -6 -5 -5 -5 -5 -5 -4 -3 -2 -1 -1 --------- Run | Yrd Mat Min Mat Min Exi Min Mat Fac Low Low Dat Pro Fac DSF Fac Ext Cet Arc Hub Fac Res Res Acc Com Machines Accessed 70 | . 2 . 2 . 2 . 8 3 . . 4 . 1 . 8 6 2 . 6 10 5 3 4 4 Terminals 51 | . 2 . 2 . . . 7 2 . . . . 1 . 6 6 2 . 5 7 2 3 2 4 Fabricators 6 | . . . . . . . . 1 . . . . . . 1 . . . . 1 2 . 1 . Repair Stations 1 | . . . . . . . . . . . . . . . . . . . . 1 . . . . Recycling Units . | . . . . . . . . . . . . . . . . . . . . . . . . . Scanalyzers . | . . . . . . . . . . . . . . . . . . . . . . . . . Garrison Access 6 | . . . . . . . 1 . . . . . . . 1 . . . 1 1 1 . 1 . Total Hacks 321 | . 3 . 4 . 5 . 27 7 . . 33 . 1 . 26 22 9 . 20 72 26 28 23 15 Successful 271 | . 1 . 2 . 5 . 18 3 . . 33 . 1 . 21 22 5 . 16 57 25 25 23 14 Failed 49 | . 2 . 2 . . . 9 4 . . . . . . 5 . 4 . 4 15 1 2 . 1 Catastrophic 6 | . . . 1 . . . 1 . . . . . . . 1 . . . . 3 . . . . Database Lockouts 1 | . . . . . . . . . . . . . . . . . . . . . . 1 . . Manual 178 | . 3 . 4 . 2 . 13 6 . . . . . . 21 13 2 . 14 40 18 17 15 10 Terminals 236 | . 3 . 4 . . . 25 5 . . . . 1 . 17 22 9 . 18 61 14 28 14 15 Fabricators 25 | . . . . . . . . 2 . . . . . . 5 . . . . 6 8 . 4 . Repair Stations 1 | . . . . . . . . . . . . . . . . . . . . 1 . . . . Recycling Units . | . . . . . . . . . . . . . . . . . . . . . . . . . Scanalyzers . | . . . . . . . . . . . . . . . . . . . . . . . . . Garrison Access 21 | . . . . . . . 2 . . . . . . . 4 . . . 2 4 4 . 5 . Terminal Hacks 183 | . . . 1 . 5 . 10 1 . . 33 . 1 . 6 16 5 . 8 40 11 23 11 12 Record 39 | . . . . . 4 . . . . . 11 . . . . 2 4 . 2 10 3 1 1 1 Part Schematic 20 | . . . . . . . 1 . . . 13 . . . 2 . . . . 4 . . . . Robot Schematic 6 | . . . . . . . . . . . 6 . . . . . . . . . . . . . Robot Analysis 3 | . . . . . . . . . . . . . . . . . . . . 3 . . . . Prototype ID Bank 23 | . . . . . . . 3 . . . 3 . . . 1 2 . . . 2 . 11 1 . Open Door 1 | . . . . . . . . . . . . . . . . . 1 . . . . . . . Open DSF 2 | . . . . . . . . . . . . . 1 . . . . . . 1 . . . . Level Access Points 8 | . . . . . . . 1 . . . . . . . 1 . . . 1 1 1 1 1 1 Branch Access Points 9 | . . . 1 . . . 1 1 . . . . . . 1 1 . . . 1 . 1 1 1 Emergency Access Points 2 | . . . . . . . . . . . . . . . . . . . 1 . . 1 . . Machine Index 5 | . . . . . . . . . . . . . . . . 1 . . . 1 . 1 1 1 Terminal Index 4 | . . . . . . . 1 . . . . . . . . 1 . . 1 . . 1 . . Recycling Unit Index 1 | . . . . . . . 1 . . . . . . . . . . . . . . . . . Unreport Threat 15 | . . . . . . . 1 . . . . . . . . 3 . . . 6 1 2 . 2 Locate Traps 3 | . . . . . . . . . . . . . . . . . . . . 1 . . 1 1 Disarm Traps 1 | . . . . . . . . . . . . . . . . . . . . . . . 1 . Dispatch Records 1 | . . . . . . . . . . . . . . . . . . . . 1 . . . . Maintenance Status 1 | . . . . . . . . . . . . . . . . . . . . 1 . . . . Surveillance Status 2 | . . . . . . . . . . . . . . . . 1 . . . . . 1 . . Patrol Status 1 | . . . . . . . . . . . . . . . . . . . . . . 1 . . Recall Investigation 4 | . . . . . . . . . . . . . . . . . . . 1 1 2 . . . Recall Extermination 2 | . . . . . . . . . . . . . . . . . . . . 1 1 . . . Recall Reinforcements 1 | . . . . . . . . . . . . . . . . . . . . . 1 . . . Hauler Manifests 3 | . . . . . . . . . . . . . . . . 1 . . . 2 . . . . Registered Components 4 | . . . . . . . 1 . . . . . . . . . . . . . 1 1 1 . Registered Prototypes 3 | . . . . . . . . . . . . . . . . . . . . . 1 . 1 1 Zone Layout 15 | . . . . . . . . . . . . . . . 1 3 . . 2 4 . 1 2 2 Garrison Registry 1 | . . . . . . . . . . . . . . . . 1 . . . . . . . . Derelict Proto ID Bank 1 | . . . . . 1 . . . . . . . . . . . . . . . . . . . Disengage Seal 2 | . . . . . . . . . . . . . . . . . . . . . . . . 2 Fabricator Hacks 9 | . . . . . . . . . . . . . . . 2 . . . . 3 3 . 1 . Network Status 3 | . . . . . . . . . . . . . . . . . . . . 1 1 . 1 . Load Schematic 3 | . . . . . . . . . . . . . . . 1 . . . . 1 1 . . . Build 3 | . . . . . . . . . . . . . . . 1 . . . . 1 1 . . . Repair Station Hacks 1 | . . . . . . . . . . . . . . . . . . . . 1 . . . . Refit 1 | . . . . . . . . . . . . . . . . . . . . 1 . . . . Recycling Unit Hacks . | . . . . . . . . . . . . . . . . . . . . . . . . . Scanalyzer . | . . . . . . . . . . . . . . . . . . . . . . . . . Garrison Access Hacks 5 | . . . . . . . 1 . . . . . . . 1 . . . 1 1 . . 1 . Seal Access 5 | . . . . . . . 1 . . . . . . . 1 . . . 1 1 . . 1 . Unauthorized Hacks 73 | . 1 . 1 . . . 7 2 . . . . . . 12 6 . . 7 12 11 2 10 2 Terminals 45 | . 1 . 1 . . . 7 2 . . . . . . 7 6 . . 6 6 2 2 3 2 Track 1 | . . . . . . . . . . . . . . . . . . . . 1 . . . . Assimilate 9 | . . . . . . . . . . . . . . . 2 3 . . . 1 1 . 1 1 Botnet 29 | . 1 . 1 . . . 6 2 . . . . . . 5 3 . . 2 3 1 2 2 1 Detonate 1 | . . . . . . . . . . . . . . . . . . . 1 . . . . . Operators 2 | . . . . . . . 1 . . . . . . . . . . . . 1 . . . . Sabotage 3 | . . . . . . . . . . . . . . . . . . . 3 . . . . . Fabricators 13 | . . . . . . . . . . . . . . . 2 . . . . 3 5 . 3 . Report 3 | . . . . . . . . . . . . . . . . . . . . 1 1 . 1 . Prioritize 4 | . . . . . . . . . . . . . . . 1 . . . . 1 2 . . . Liberate 2 | . . . . . . . . . . . . . . . . . . . . . 1 . 1 . Fabnet 3 | . . . . . . . . . . . . . . . 1 . . . . 1 1 . . . Haulers 1 | . . . . . . . . . . . . . . . . . . . . . . . 1 . Repair Stations . | . . . . . . . . . . . . . . . . . . . . . . . . . Recycling Units . | . . . . . . . . . . . . . . . . . . . . . . . . . Scanalyzers . | . . . . . . . . . . . . . . . . . . . . . . . . . Garrison Access 15 | . . . . . . . . . . . . . . . 3 . . . 1 3 4 . 4 . Broadcast 4 | . . . . . . . . . . . . . . . 1 . . . . 1 1 . 1 . Decoy 3 | . . . . . . . . . . . . . . . 1 . . . . 1 . . 1 . Redirect 2 | . . . . . . . . . . . . . . . 1 . . . . . 1 . . . Reprogram 3 | . . . . . . . . . . . . . . . . . . . 1 1 1 . . . Intercept 1 | . . . . . . . . . . . . . . . . . . . . . . . 1 . Watchers 2 | . . . . . . . . . . . . . . . . . . . . . 1 . 1 . Data Cores Recovered 1 | . . . 1 . . . . . . . . . . . . . . . . . . . . . Used . | . . . . . . . . . . . . . . . . . . . . . . . . . Hacking Detections 40 | . 2 . 2 . . . 6 3 . . . . . . 6 2 2 . 3 5 2 2 3 2 Full Trace Events 5 | . . . . . . . . 2 . . . . . . 1 . . . . 1 1 . . . Feedback Events . | . . . . . . . . . . . . . . . . . . . . . . . . . Feedback Blocked . | . . . . . . . . . . . . . . . . . . . . . . . . . Robot Schematics Acquired 6 | . . . . . . . . . . . 6 . . . . . . . . . . . . . Robots Built . | . . . . . . . . . . . . . . . . . . . . . . . . . Authchips . | . . . . . . . . . . . . . . . . . . . . . . . . . Time . | . . . . . . . . . . . . . . . . . . . . . . . . . Total Robot Build Rating . | . . . . . . . . . . . . . . . . . . . . . . . . . Part Schematics Acquired 19 | . . . . . . . 1 . . . 13 . . . 2 . . . . 3 . . . . Parts Built 3 | . . . . . . . . . . . . . . . 1 . . . . 1 1 . . . Authchips 1 | . . . . . . . . . . . . . . . 1 . . . . . . . . . Time 188 | . . . . . . . . . . . . . . . 49 . . . . 46 93 . . . Total Part Build Rating 16 | . . . . . . . . . . . . . . . 2 . . . . 7 7 . . . Parts Repaired . | . . . . . . . . . . . . . . . . . . . . . . . . . Time . | . . . . . . . . . . . . . . . . . . . . . . . . . Parts Recycled . | . . . . . . . . . . . . . . . . . . . . . . . . . Recycled Matter . | . . . . . . . . . . . . . . . . . . . . . . . . . Retrieved Matter . | . . . . . . . . . . . . . . . . . . . . . . . . . Retrieved Components . | . . . . . . . . . . . . . . . . . . . . . . . . . Parts Scanalyzed . | . . . . . . . . . . . . . . . . . . . . . . . . . Part Schematics Acquired . | . . . . . . . . . . . . . . . . . . . . . . . . . Parts Damaged . | . . . . . . . . . . . . . . . . . . . . . . . . . Bothacking | -11 -10 -10 -9 -9 -9 -8 -8 -7 -7 -7 -7 -6 -6 -6 -5 -5 -5 -5 -5 -4 -3 -2 -1 -1 ------------ Run | Yrd Mat Min Mat Min Exi Min Mat Fac Low Low Dat Pro Fac DSF Fac Ext Cet Arc Hub Fac Res Res Acc Com Used RIF Installer . | . . . . . . . . . . . . . . . . . . . . . . . . . Robots Hacked 1 | . . . . . . . . . . . . . . . . . . 1 . . . . . . Non-combat 1 | . . . . . . . . . . . . . . . . . . 1 . . . . . . Combat . | . . . . . . . . . . . . . . . . . . . . . . . . . Robot Hacks Applied 2 | . . . . . . . . . . . . . . . . . . 2 . . . . . . parse_system 1 | . . . . . . . . . . . . . . . . . . 1 . . . . . . check_alert 1 | . . . . . . . . . . . . . . . . . . 1 . . . . . . Relay Couplers Released . | . . . . . . . . . . . . . . . . . . . . . . . . . Fabnet Peak Effective % 4 | . . . . . . . . . . . . . . . . . . . . 3 4 4 1 1 Robots Rewired 4 | . . . . . . . . . . . . . . . . 4 . . . . . . . . Allies Hacked . | . . . . . . . . . . . . . . . . . . . . . . . . . Hacks Repelled . | . . . . . . . . . . . . . . . . . . . . . . . . . Allies | -11 -10 -10 -9 -9 -9 -8 -8 -7 -7 -7 -7 -6 -6 -6 -5 -5 -5 -5 -5 -4 -3 -2 -1 -1 -------- Run | Yrd Mat Min Mat Min Exi Min Mat Fac Low Low Dat Pro Fac DSF Fac Ext Cet Arc Hub Fac Res Res Acc Com Total Allies 21 | . . . . . . . . . . . . . . . 2 11 5 . . . 1 . 1 1 Largest Group 7 | . . . . . . . . . . . . . . . 2 7 7 7 6 . 1 . 1 1 Highest-Rated Group 678 | . . . . . . . . . . . . . . . 36 303 678 678 514 . 26 . 45 45 Highest-Rated Ally 159 | . . . . . . . . . . . . . . . 26 159 159 159 96 . 26 . 45 45 Total Orders 4 | . . . . . . . . . . . . . . . . 1 . 3 . . . . . . STAY 1 | . . . . . . . . . . . . . . . . 1 . . . . . . . . ROAM 1 | . . . . . . . . . . . . . . . . . . 1 . . . . . . FOLLOW 2 | . . . . . . . . . . . . . . . . . . 2 . . . . . . Ally Attacks 135 | . . . . . . . . . . . . . . . . 39 35 38 23 . . . . . Total Damage 3615 | . . . . . . . . . . . . . . . . 636 1011 1182 786 . . . . . Kills 26 | . . . . . . . . . . . . . . . . 11 9 4 2 . . . . . Allies Corrupted 1 | . . . . . . . . . . . . . . . . . . . 1 . . . . . Allies Melted . | . . . . . . . . . . . . . . . . . . . . . . . . . Intel | -11 -10 -10 -9 -9 -9 -8 -8 -7 -7 -7 -7 -6 -6 -6 -5 -5 -5 -5 -5 -4 -3 -2 -1 -1 ------- Run | Yrd Mat Min Mat Min Exi Min Mat Fac Low Low Dat Pro Fac DSF Fac Ext Cet Arc Hub Fac Res Res Acc Com Robot Analysis Total 3 | . . . . . . . . . . . . . . . . . . . . 3 . . . . Derelict Logs Recovered 4 | . . . . . . . . . 1 1 . 2 . . . . . . . . . . . . Drone Launches . | . . . . . . . . . . . . . . . . . . . . . . . . . Drone Recoveries . | . . . . . . . . . . . . . . . . . . . . . . . . . Exploration | -11 -10 -10 -9 -9 -9 -8 -8 -7 -7 -7 -7 -6 -6 -6 -5 -5 -5 -5 -5 -4 -3 -2 -1 -1 ------------- Run | Yrd Mat Min Mat Min Exi Min Mat Fac Low Low Dat Pro Fac DSF Fac Ext Cet Arc Hub Fac Res Res Acc Com Turns Passed 7490 | . 336 37 916 438 559 501 283 265 116 112 64 148 4 88 650 557 348 306 183 469 390 260 179 281 Spaces Moved 9224 | 1 181 19 390 215 292 204 414 532 305 314 186 336 11 151 1226 903 217 409 266 799 506 419 388 540 Core 131 | . . . . . . . . . . . . . . . . 1 . . . . 130 . . . Treads . | . . . . . . . . . . . . . . . . . . . . . . . . . Legs 1259 | 1 181 19 390 215 292 161 . . . . . . . . . . . . . . . . . . Wheels . | . . . . . . . . . . . . . . . . . . . . . . . . . Hover . | . . . . . . . . . . . . . . . . . . . . . . . . . Flight 7834 | . . . . . . 43 414 532 305 314 186 336 11 151 1226 902 217 409 266 799 376 419 388 540 Fastest Speed 28 | 120 120 190 190 190 190 117 37 34 34 34 34 34 34 34 34 34 34 34 32 30 34 34 28 30 Average Speed 56 | 120 130 190 190 190 190 199 37 34 34 34 34 34 34 34 35 34 34 34 34 34 66 34 30 30 Slowest Speed 350 | 120 190 190 190 190 190 260 37 37 34 34 34 34 34 37 37 350 34 34 40 40 150 34 34 30 Overloaded Moves . | . . . . . . . . . . . . . . . . . . . . . . . . . Propulsion Burnouts . | . . . . . . . . . . . . . . . . . . . . . . . . . Robots Hopped 16 | . . . . . . . 4 . . . . . . . 4 4 . . . . 3 . . 1 Cave-ins Triggered 5 | . . . . . . . . . . . . . . . . 1 . . . 2 . 1 1 . Time Travels 1 | . . . . . . . . . . . 1 . . . . . . . . . . . . . Exploration Rate (%) 39 | 2 35 12 35 53 60 50 35 15 47 41 75 55 1 92 24 76 76 98 29 19 18 13 12 18 Regions Visited 24 Branch Regions 13 Pre-discovered Areas 3 | . . . . 1 1 . . . . . 1 . . . . . . . . . . . . . Known Exits Taken 17 | . . . 1 . . . 1 1 1 1 1 1 1 . 1 1 1 1 1 1 1 1 1 . Unknown Exits Taken 6 | 1 1 1 . 1 1 1 . . . . . . . . . . . . . . . . . . Scrap Searched 5 | . . . . 1 . 2 . . 1 1 . . . . . . . . . . . . . . Spaces Dug 356 | . . . . . . . 10 25 6 . . 3 . 7 29 28 . . 169 32 4 15 13 15 Terrain Destroyed 570 | . . . 11 5 . 44 10 25 6 20 . 3 . 7 29 119 41 2 169 32 4 15 13 15 Melee 169 | . . . . . . . 10 25 6 . . 3 . 7 29 6 . . 4 32 4 15 13 15 Projectile 2 | . . . . . . . . . . . . . . . . . . 2 . . . . . . AOE 399 | . . . 11 5 . 44 . . . 20 . . . . . 113 41 . 165 . . . . . Terrain Rammed . | . . . . . . . . . . . . . . . . . . . . . . . . . Walls Destroyed . | . . . . . . . . . . . . . . . . . . . . . . . . . Machines Disabled . | . . . . . . . . . . . . . . . . . . . . . . . . . Actions | -11 -10 -10 -9 -9 -9 -8 -8 -7 -7 -7 -7 -6 -6 -6 -5 -5 -5 -5 -5 -4 -3 -2 -1 -1 --------- Run | Yrd Mat Min Mat Min Exi Min Mat Fac Low Low Dat Pro Fac DSF Fac Ext Cet Arc Hub Fac Res Res Acc Com Total 10978 | . 238 19 514 236 298 275 519 585 310 317 186 363 10 179 1391 1122 481 548 353 952 545 504 420 613 Wait 1171 | . 19 . 70 15 . 51 74 7 . . . 20 . 18 101 142 247 86 75 108 28 65 12 33 Move 9171 | . 180 18 389 214 291 203 406 531 304 313 185 335 10 150 1217 896 216 408 265 799 499 418 387 537 Hop 13 | . . . . . . . 3 . . . . . . . 4 2 . . . . 3 . . 1 Pick Up 37 | . 7 . 7 1 3 . 2 . . . . . . 3 1 5 1 4 1 1 . 1 . . Fast Attach 67 | . 3 . 7 . . 4 2 2 . . . . . 1 15 6 2 4 1 2 5 4 4 5 Attach 18 | . . . . . . 1 3 1 . 1 . 2 . . 1 2 1 2 . 3 1 . . . Detach 9 | . . . . . . . 1 . . 1 1 . . . . 3 . 2 . 1 . . . . Swap 17 | . 1 . 2 . 1 3 2 . . . . . . . . . 2 1 2 2 1 . . . Drop 65 | . 6 . 12 1 3 1 5 . . . . . . . 10 7 1 9 3 1 1 1 3 1 Fire 111 | . 22 . 27 5 . 12 . . . 2 . . . . . 11 7 24 1 . . . . . Melee 232 | . . . . . . . 21 26 6 . . 6 . 7 42 15 4 8 5 35 7 15 14 21 Ram . | . . . . . . . . . . . . . . . . . . . . . . . . . Kick 1 | . . 1 . . . . . . . . . . . . . . . . . . . . . . Crush . | . . . . . . . . . . . . . . . . . . . . . . . . . Escape Stasis 44 | . . . . . . . . 18 . . . . . . . 11 . . . . . . . 15 Rewire 21 | . . . . . . . . . . . . . . . . 21 . . . . . . . . Trap 1 | . . . . . . . . . . . . . . . . 1 . . . . . . . . Miscellaneous . | . . . . . . . . . . . . . . . . . . . . . . . . . Route ------- -11/Scrapyard -10/Materials -10/Mines -9/Materials (discovered 2 exits: *Min / Sto) -9/Mines (discovered 2 exits: *Mat / *Exi) -9/Exiles -8/Mines -8/Materials (discovered 3 exits: *Fac x3) -7/Factory (discovered 3 exits: *Fac / *Low x2) -7/Lower Caves -7/Lower Caves -7/Data Miner -6/Proximity Caves -6/Factory -6/DSF -5/Factory (discovered 8 exits: Fac x4 / *Upp x2 / *Ext x2) -5/Extension (discovered 2 exits: *Fac / *Cet) -5/Cetus -5/Archives (discovered 3 exits: *Fac / *Hub x2) -5/Hub_04(d) (discovered 4 exits: *Fac x4) -4/Factory (discovered 6 exits: *Res x4 / Upp x2) -3/Research (discovered 3 exits: *Res x3) -2/Research (discovered 5 exits: *Acc x3 / Tes x2) -1/Access (discovered 2 exits: Sur / *Com) -1/Command (discovered 2 exits: *Sur x2) To Epsilon Eridani History --------- Turn | Location | Event 1 | -11/Scrapyard | Discovered new exit (range 0) 1 | -11/Scrapyard | Entered Materials 254 | -10/Materials | Discovered new exit (range 11) 309 | -10/Materials | Build established: Mutant 337 | -10/Materials | Entered Mines 356 | -10/Mines | Discovered new exit (range 8) 374 | -10/Mines | Entered Materials 374 | -9/Materials | Evolved 2 slots: Utility x2 621 | -9/Materials | Identified exit to Mines 621 | -9/Materials | Identified exit to Storage 1290 | -9/Materials | Entered Mines 1307 | -9/Mines | Met a Derelict bent on vengeance 1315 | -9/Mines | Discovered new exit (range 15) 1327 | -9/Mines | A weapon hastily lodged in a ceiling crevice suddenly fell to the ground 1588 | -9/Mines | Learned location of Storage (-9) 1720 | -9/Mines | Deemed a non-threat by the Exiles lab entrance 1720 | -9/Mines | Discovered new exit (range 5) 1728 | -9/Mines | Entered Exiles 1782 | -9/Exiles | Met 8R-AWN 1868 | -9/Exiles | Met EX-HEX 1929 | -9/Exiles | Met EX-BIN 2037 | -9/Exiles | Aligned with FarCom system 2039 | -9/Exiles | Given EX-Vault access code 2083 | -9/Exiles | Opened EX-Vault 2098 | -9/Exiles | Found Chronowheel 2137 | -9/Exiles | Warned to stay clear of 0b10 Research branches 2194 | -9/Exiles | Met EX-DEC 2202 | -9/Exiles | Learned location of Zion (-6) 2266 | -9/Exiles | Discovered new exit (range 14) 2287 | -9/Exiles | Left Exiles lab with Chronowheel 2287 | -9/Exiles | Entered Mines 2323 | -8/Mines | Lost 3 parts (1n2u) 2759 | -8/Mines | Discovered new exit (range 15) 2788 | -8/Mines | Entered Materials 2788 | -8/Materials | Evolved 2 slots: Propulsion x1, Utility x1 2932 | -8/Materials | Identified exit to Factory 3071 | -8/Materials | Entered Factory 3071 | -7/Factory | Evolved 2 slots: Utility x2 3143 | -7/Factory | Identified exit to Lower Caves 3286 | -7/Factory | Discovered new exit (range 13) 3296 | -7/Factory | Identified exit to Factory 3303 | -7/Factory | Build established: Hacker-Scout 3336 | -7/Factory | Entered Lower Caves 3377 | -7/Lower Caves | Learned Factory security intel 3431 | -7/Lower Caves | Discovered new exit (range 11) 3452 | -7/Lower Caves | Identified exit to Lower Caves 3452 | -7/Lower Caves | Entered another Lower Caves area 3481 | -7/Lower Caves | Learned Factory terminal intel 3561 | -7/Lower Caves | Discovered new exit (range 12) 3564 | -7/Lower Caves | Identified exit to Data Miner 3564 | -7/Lower Caves | Entered Data Miner 3564 | -7/Data Miner | Discovered new exit (range 6) 3571 | -7/Data Miner | Met Data Miner 3578 | -7/Data Miner | Learned location of Section 7 (-3) 3578 | -7/Data Miner | Acquired the access code to Warlord's prototype stash 3584 | -7/Data Miner | Received God Mode back door access code from Data Miner 3594 | -7/Data Miner | Activated Chronowheel 3594 | -7/Data Miner | Spacetime reconverged on an earlier point 3617 | -7/Data Miner | Identified exit to Proximity Caves 3627 | -7/Data Miner | Build established: Hacker-Mutant 3628 | -7/Data Miner | Entered Proximity Caves 3680 | -6/Proximity Caves | Attracted the attention of an 0b10 checkpoint 3760 | -6/Proximity Caves | Learned Factory stockpile data 3774 | -6/Proximity Caves | Learned 4 Factory zone layouts 3774 | -6/Proximity Caves | Discovered exit to Factory (range 9) 3776 | -6/Proximity Caves | Entered Factory 3776 | -6/Factory | Evolved 2 slots: Propulsion x1, Utility x1 3780 | -6/Factory | Loaded intel: 26 terminal locations 3780 | -6/Factory | Identified exit to DSF 3780 | -6/Factory | Entered DSF 3814 | -6/DSF | Additional patrols routed to DSF 3859 | -6/DSF | Discovered new exit (range 14) 3867 | -6/DSF | Identified exit to Factory 3868 | -6/DSF | Entered Factory 3868 | -5/Factory | Evolved 2 slots: Utility x2 3899 | -5/Factory | Lost 4 parts (1p1n2u) 4114 | -5/Factory | Discovered new exit (range 4) 4116 | -5/Factory | Identified exit to Upper Caves 4277 | -5/Factory | Identified exit to Extension 4277 | -5/Factory | Identified exit to Factory 4313 | -5/Factory | Fabricated Imp. Flight Unit (x1) 4468 | -5/Factory | Build established: Wizard-Scout 4518 | -5/Factory | Entered Extension 4518 | -5/Extension | Accompanied by 2 allies 4532 | -5/Extension | Rescued a captive Derelict 4533 | -5/Extension | Rescued a captive Derelict 4699 | -5/Extension | Crushed by falling debris 4740 | -5/Extension | Rescued a captive Derelict 4855 | -5/Extension | Rescued a captive Derelict 4882 | -5/Extension | Rescued A7 4899 | -5/Extension | Identified exit to Cetus 4901 | -5/Extension | Rescued a captive Derelict 4982 | -5/Extension | Discovered exit to Factory (range 10) 5075 | -5/Extension | Entered Cetus 5075 | -5/Cetus | Accompanied by 4 allies (A7) 5080 | -5/Cetus | Acquired a Cetus Manufacturing Module code from A7 5080 | -5/Cetus | Spotted Cetus Guard 5081 | -5/Cetus | Spotted Cetus Guard 5082 | -5/Cetus | Spotted Cetus Guard 5090 | -5/Cetus | Spotted Cetus Guard 5098 | -5/Cetus | Destroyed Cetus Guard 5106 | -5/Cetus | Allies destroyed Cetus Guard 5111 | -5/Cetus | Allies destroyed Cetus Guard 5120 | -5/Cetus | Allies destroyed Cetus Guard 5148 | -5/Cetus | Started Cetus Manufacturing Module 5152 | -5/Cetus | Escorted A7 to Cetus Mainframe 5173 | -5/Cetus | Manufactured an Enhanced Grunt 5181 | -5/Cetus | Discovered new exit (range 16) 5186 | -5/Cetus | Identified exit to Archives 5198 | -5/Cetus | Manufactured an Enhanced Grunt 5223 | -5/Cetus | Manufactured an Enhanced Grunt 5248 | -5/Cetus | Manufactured an Enhanced Grunt 5273 | -5/Cetus | Manufactured an Enhanced Grunt 5391 | -5/Cetus | Build established: Hacker-Scout 5423 | -5/Cetus | Entered Archives 5423 | -5/Archives | Accompanied by 7 allies (A7) 5428 | -5/Archives | Received a hacking code to weaken MAIN.C 5463 | -5/Archives | Unable to access archive contents 5471 | -5/Archives | Discovered exit to Factory (range 15) 5482 | -5/Archives | Discovered new exit (range 14) 5523 | -5/Archives | Unable to access archive contents 5534 | -5/Archives | Discovered new exit (range 16) 5643 | -5/Archives | Unable to access archive contents 5667 | -5/Archives | Identified exit to Hub_04(d) 5729 | -5/Archives | Build established: Wizard-Scout 5729 | -5/Archives | Entered Hub_04(d) 5729 | -5/Hub_04(d) | Accompanied by 6 allies 5763 | -5/Hub_04(d) | Network Hub disabled 5766 | -5/Hub_04(d) | Network Hub disabled 5825 | -5/Hub_04(d) | Network Hub disabled 5905 | -5/Hub_04(d) | Network Hub disabled 5907 | -5/Hub_04(d) | Spotted Lightning 5912 | -5/Hub_04(d) | Entered Factory 5912 | -4/Factory | Evolved 2 slots: Utility x2 5939 | -4/Factory | Identified exit to Upper Caves 6014 | -4/Factory | Identified exit to Research 6066 | -4/Factory | Fabricated Exp. Hacking Suite (x1) 6144 | -4/Factory | Crushed by falling debris 6374 | -4/Factory | Crushed by falling debris 6381 | -4/Factory | Entered Research 6381 | -3/Research | Evolved 2 slots: Utility x2 6604 | -3/Research | Fabricated Exp. Hacking Suite (x1) 6675 | -3/Research | Identified exit to Research 6721 | -3/Research | Spotted B-86 Titan 6761 | -3/Research | Found Enh. Force Lance 6771 | -3/Research | Entered another Research area 6771 | -2/Research | Evolved 2 slots: Utility x2 6785 | -2/Research | Identified exit to Access 6808 | -2/Research | Identified exit to Testing 6810 | -2/Research | Found Prototype Device 6810 | -2/Research | Identified Exp. Thermal Shield 6942 | -2/Research | Crushed by falling debris 7011 | -2/Research | Central database locked down 7031 | -2/Research | Entered Access 7031 | -1/Access | Evolved 2 slots: Propulsion x1, Utility x1 7121 | -1/Access | Identified exit to Command 7121 | -1/Access | Identified exit to Surface 7179 | -1/Access | Crushed by falling debris 7210 | -1/Access | Entered Command 7210 | -1/Command | Accompanied by 1 ally 7248 | -1/Command | Disengaged cave seal 7385 | -1/Command | Disengaged cave seal 7385 | -1/Command | Wild derelicts emerged from the dark tunnel 7459 | -1/Command | Build established: Wizard-Ninja 7477 | -1/Command | Spotted B-99 Colossus 7477 | -1/Command | Spotted Executioner 7487 | -1/Command | Spotted Executioner 7491 | *** | Escaped! Last Messages --------------- area. 07478_ Field strength at 94. 07479_ Access Shell breached. 07482_ Field strength at 88. 07483_ System corrupted: Matter fused (-10). 07483_ Field strength at 82. 07484_ Field strength at 76. 07485_ Field strength at 70. 07486_ Field strength at 64. 07487_ Field strength at 58. 07488_ Field strength at 52. 07489_ Field strength at 46. 07489_ Lgt. Particle Reactor destroyed. 07489_ Penetrated by Slug. 07489_ Slug penetrates Wall. 07489_ Slug penetrates Access Shell. 07489_ Penetrated by Slug. 07489_ Slug penetrates Executioner. 07490_ Field strength at 1. 07491_ Stasis field depleted. Map ----- +----------------------------------------------------+ | ?????????????????????????????????????????????????? | | ?????????????????????????????????????????????????? | | ?????????????????????????????????????????????????? | | ?????????????????????????????????????????????????? | | ?????????????????????????????????????????????????? | | ?????????????????????????????????????????????????? | | ?????????????????????????????????????????????????? | | ?????????????????????????????????????????????????? | | ?????????????????????????????????????????????????? | | ?????????????????????????????????????????????????? | | ?????????????????????????????????????????????????? | | ?????????????????????????????????????????????????? | | ?????????????????????????????????????????????????? | | ?????????????????????????????????????????????????? | | ?????????????????????????????????????????????????? | | ?????????????????????????????????????????????????? | | ?????????????????????????????????????????????????? | | ?????????????????????????????????????????????????? | | ?????????????????????????????????????????????????? | | ??????????????????????????######?????????????????? | | ???????????????????BB????? #?????????????????? | | ???????????????????BB?????? #?????????????????? | | ???????????7?K?E?E????????? #?????????????????? | | ??????????????????????"""""" #?????????????????? | | ??????????????????????" " #?????????????????? | | ??????????? ??????????" "@ "^ #?????????????????? | | ?????????? ??????" "" #?????????????????? | | ?????????? ???" " #?????????????????? | | ????????? """" E #?????????????????? | | ???????????7?K????# E ##????????????????? | | ??????????????????# BB "#????????????????? | | ??????????????????# BB ##????????????????? | | ??????????????????####"########"##???????????????? | | ?????????????????????#????????##"##??????????????? | | ??????????????????????????????###"#######????????? | | ??????????????????????????????# #???????## | | ??????????????????????????????# #???????# | | ??????????????????????????###?# #?#?#???# | | ????????????????????????###"#?# #?# #???# | | ????????????????????????# #######+####### ##### | | ????????????????????????# * =%* | | ????????????????????????# #####"#+#####"###/"## | | ????????????????????????## ##???## "# # | | ?????????????????????????# #????#" ## # | | ?????????????????????????# #????## ## # | | ?????????????????????????# #?????# ! ## ## | | ?????????????????????????# #?????# ## #? | | ????????????????????######+####### ## #? | | ????????????????????# ######### #? | | ????????????????????# #???????# #? | +----------------------------------------------------+ Best States ------------- Heat Dissipation 60 Energy Generation 23 Energy Capacity 310 Matter Stores 300 Matter Capacity 300 Sight Range 22 Robot Scan Range 16 Terrain Scan Density 10 Corruption Containment 16 Armor Coverage 150 Resistance: TH 30 Propulsion Shielding 66 Utility Shielding 66 Evasion (%) 74 Melee Accuracy 13 Offensive Hacking 106 Defensive Hacking 42 Authchip Count 1 Item Schematics ----------------- Imp. Flight Unit | -8/Materials | Hacked Combat Drone Bay | -7/Data Miner | Free Lgt. Regenerative Plating | -7/Data Miner | Free Cld. Aerolev Unit | -7/Data Miner | Free Gravity Neutralizer | -7/Data Miner | Free Scatter Rocket Array | -7/Data Miner | Free Nuclear Pulse Array | -7/Data Miner | Free Imp. Shock Absorption System | -7/Data Miner | Free Imp. Arc Projector | -7/Data Miner | Free Nuclear Pulse Thruster | -7/Data Miner | Free Cmb. Gravmag System | -7/Data Miner | Free Hvy. Phase Cannon | -7/Data Miner | Free Graphene Brace | -7/Data Miner | Free Adv. Coolant Injector | -7/Data Miner | Free Cld. VTOL Module | -5/Factory | Hacked Exp. Hacking Suite | -5/Factory | Hacked Imp. Linear Gravjet | -4/Factory | Hacked Nova Cannon | -4/Factory | Hacked Lgt. Particle Reactor | -4/Factory | Hacked Robot Schematics ------------------ A-15 Conveyor | -7/Data Miner | Free R-10 Processor | -7/Data Miner | Free E-15 Imp | -7/Data Miner | Free S-27 Virus | -7/Data Miner | Free G-50 Soldier | -7/Data Miner | Free Y-64 Sentinel | -7/Data Miner | Free Fabricated ------------ Imp. Flight Unit | x1 | -5/Factory | Authchip Exp. Hacking Suite | x1 | -4/Factory Exp. Hacking Suite | x1 | -3/Research Alien Tech Used ----------------- None Achievements -------------- 404 Origins l33t h4x0r Challenges ------------ None Game ------ Seed SubatomicSupersonicDriver Manual? 0 Play Time 02:29:46 Cumulative 181.7 hours Start 2024.03.27 @ 21:07:16 End 2024.03.28 @ 14:04:45 Sessions 3 Manual Loads 0 Difficulty Rogue Special Mode None Game No. 191 Rogue 191 Adventurer 0 Explorer 0 Win Type 0 Total 3 Types 3/0/0/0/0/0/0/0/0 Lore% 60 Gallery% 73 Achievement% 58 Wizard Run 0 Options --------- Layout 1 ASCII 0 Keyboard 0 Movement Numpad Keybinds 0 Fullscreen 1 Font 24/Smallcaps Map View 50x35 Zoom Use 0% Tactical HUD 1 Map Filters NONE Filters NONE Steam 1 RUN: f4c0d61e-5d87-4415-ab39-57f8f217b4a5